bitfinex/quotes_BTCUSD_20240623
["timestamp","ask_amount","ask_price","bid_price","bid_amount"]
[1719128992793,0.91708442,64492.0,64491.0,0.16484396]
[1719128995649,0.88901338,64492.0,64491.0,0.16484396]
[1719128995853,0.89742414,64492.0,64491.0,0.16484396]
[1719128996035,0.91715088,64492.0,64491.0,0.16484396]
[1719128998083,1.03366534,64492.0,64491.0,0.16484396]
[1719128998885,1.03316606,64492.0,64491.0,0.16484396]
[1719128999367,0.9166516,64492.0,64491.0,0.16484396]
[1719129001367,0.91707181,64492.0,64491.0,0.16484396]
[1719129001774,1.07687181,64492.0,64491.0,0.012935]
[1719129004021,1.07659855,64492.0,64491.0,0.012935]
[1719129004239,1.07538243,64492.0,64491.0,0.012935]
[1719129006069,1.40849743,64492.0,64491.0,0.012935]
[1719129006218,1.5482864,64492.0,64491.0,0.012935]
[1719129006419,1.6001864,64492.0,64491.0,0.012935]
[1719129006787,1.46039743,64492.0,64491.0,0.012935]
[1719129007195,1.46778878,64492.0,64491.0,0.012935]
[1719129007397,1.58778482,64492.0,64491.0,0.012935]
[1719129007596,1.60751156,64492.0,64491.0,0.012935]
[1719129008295,1.60751156,64492.0,64491.0,0.000935]
[1719129008518,1.60951156,64492.0,64491.0,0.013935]
[1719129009328,1.46978878,64492.0,64491.0,0.013935]
[1719129010296,1.46969554,64492.0,64491.0,0.013935]
[1719129010780,1.4696954,64492.0,64491.0,0.013935]
[1719129013306,1.43555512,64492.0,64491.0,0.013935]
[1719129013516,1.46982187,64492.0,64491.0,0.013935]
[1719129016523,1.46969122,64492.0,64491.0,0.013935]
[1719129020241,1.4696313,64492.0,64491.0,0.013935]
[1719129022753,1.46967592,64492.0,64491.0,0.013935]
[1719129024113,1.4691285,64492.0,64491.0,0.013935]
[1719129025808,1.4350077,64492.0,64491.0,0.013935]
[1719129025975,1.46915303,64492.0,64491.0,0.013935]
[1719129028833,1.4450077,64492.0,64491.0,0.013935]
[1719129029166,1.46865169,64492.0,64491.0,0.013935]
[1719129029377,1.4685875,64492.0,64491.0,0.013935]
[1719129032145,1.4686045,64492.0,64491.0,0.013935]
[1719129035217,1.46859843,64492.0,64491.0,0.013935]
[1719129038393,1.46861375,64492.0,64491.0,0.013935]
[1719129038844,1.4350077,64492.0,64491.0,0.013935]
[1719129039085,1.46861585,64492.0,64491.0,0.013935]
[1719129039858,1.46859674,64492.0,64491.0,0.013935]
[1719129041545,1.4434077,64492.0,64491.0,0.013935]
[1719129041745,1.46697987,64492.0,64491.0,0.013935]
[1719129041878,1.60665185,64492.0,64491.0,0.013935]
[1719129044072,1.60637778,64492.0,64491.0,0.013935]
[1719129044274,1.4667058,64492.0,64491.0,0.013935]
[1719129044498,1.46470786,64492.0,64491.0,0.013935]
[1719129044892,1.47470786,64492.0,64491.0,0.013935]
[1719129047573,1.474774,64492.0,64491.0,0.013935]
[1719129047999,1.44313363,64492.0,64491.0,0.013935]
[1719129048197,1.464774,64492.0,64491.0,0.013935]
[1719129049714,1.43313363,64492.0,64491.0,0.013935]
[1719129049916,1.46482579,64492.0,64491.0,0.013935]
[1719129050836,1.43313363,64492.0,64491.0,0.013935]
[1719129051031,1.46482592,64492.0,64491.0,0.013935]
[1719129053152,1.47482592,64492.0,64491.0,0.013935]
[1719129053354,1.46482592,64492.0,64491.0,0.013935]
[1719129053955,1.43313363,64492.0,64491.0,0.013935]
[1719129054177,1.46420359,64492.0,64491.0,0.013935]
[1719129055743,1.47420359,64492.0,64491.0,0.013935]
[1719129056160,1.46420359,64492.0,64491.0,0.013935]
[1719129056655,1.47420359,64492.0,64491.0,0.013935]
[1719129057682,1.44258613,64492.0,64491.0,0.013935]
[1719129057886,1.47434916,64492.0,64491.0,0.013935]
[1719129058683,1.46434916,64492.0,64491.0,0.013935]
[1719129059299,1.47434916,64492.0,64491.0,0.013935]
[1719129059648,1.46434916,64492.0,64491.0,0.013935]
[1719129060382,1.43258613,64492.0,64491.0,0.013935]
[1719129060594,1.4642684,64492.0,64491.0,0.013935]
[1719129062226,1.3060684,64492.0,64491.0,0.013935]
[1719129064230,1.31579514,64492.0,64491.0,0.013935]
[1719129064652,1.30579514,64492.0,64491.0,0.013935]
[1719129065032,1.31579514,64492.0,64491.0,0.013935]
[1719129065835,1.30586199,64492.0,64491.0,0.013935]
[1719129066325,1.31462786,64492.0,64491.0,0.013935]
[1719129068880,1.28287874,64492.0,64491.0,0.013935]
[1719129069079,1.31465744,64492.0,64491.0,0.013935]
[1719129072201,1.3147498,64492.0,64491.0,0.013935]
[1719129073473,1.7181648,64492.0,64491.0,0.013935]
[1719129073673,1.86508396,64492.0,64491.0,0.013935]
[1719129074116,1.86480985,64492.0,64491.0,0.013935]
[1719129074851,1.87480985,64492.0,64491.0,0.013935]
[1719129075181,1.76671963,64492.0,64491.0,0.013935]
[1719129075395,2.03258002,64492.0,64491.0,0.013935]
[1719129075598,1.92398619,64492.0,64491.0,0.013935]
[1719129075827,2.0004368,64492.0,64491.0,0.013935]
[1719129076073,2.03257114,64492.0,64491.0,0.013935]
[1719129076398,1.87530458,64492.0,64491.0,0.013935]
[1719129078375,1.76671963,64492.0,64491.0,0.013935]
[1719129078671,1.87541405,64492.0,64491.0,0.013935]
[1719129080849,2.02796819,64492.0,64491.0,0.013935]
[1719129081559,2.02798001,64492.0,64491.0,0.013935]
[1719129082488,1.95728001,64492.0,64491.0,0.013935]
[1719129084184,1.95700613,64492.0,64491.0,0.013935]
[1719129084420,1.80445199,64492.0,64491.0,0.013935]
[1719129084619,1.60244575,64492.0,64491.0,0.013935]
[1719129084796,1.7111688,64492.0,64491.0,0.013935]
[1719129085001,1.60244575,64492.0,64491.0,0.013935]
[1719129085204,1.7111688,64492.0,64491.0,0.013935]
[1719129087185,1.7011688,64492.0,64491.0,0.013935]
[1719129087385,1.6492688,64492.0,64491.0,0.013935]
[1719129087592,1.59244575,64492.0,64491.0,0.013935]
[1719129087796,1.70121838,64492.0,64491.0,0.013935]
[1719129090863,1.70300028,64492.0,64491.0,0.013935]
[1719129094298,1.70272702,64492.0,64491.0,0.013935]
[1719129094486,1.70284746,64492.0,64491.0,0.013935]
[1719129095427,1.70287406,64492.0,64491.0,0.013935]
[1719129097006,1.59217249,64492.0,64491.0,0.013935]
[1719129097205,1.70288737,64492.0,64491.0,0.013935]
[1719129099759,1.70285862,64492.0,64491.0,0.013935]
[1719129100247,1.70285473,64492.0,64491.0,0.013935]
[1719129101512,1.62541216,64492.0,64491.0,0.013935]
[1719129103122,1.59214374,64492.0,64491.0,0.013935]
[1719129103480,1.62536725,64492.0,64491.0,0.013935]
[1719129103679,1.62536388,64492.0,64491.0,0.013935]
[1719129106401,1.62535841,64492.0,64491.0,0.013935]
[1719129106599,1.31524341,64492.0,64491.0,0.013935]
[1719129109388,1.28202874,64492.0,64491.0,0.013935]
[1719129109585,1.31531289,64492.0,64491.0,0.013935]
[1719129112697,1.31532154,64492.0,64491.0,0.013935]
[1719129114099,1.31504765,64492.0,64491.0,0.013935]
[1719129114435,1.31506904,64492.0,64491.0,0.013935]
[1719129116115,1.31506904,64492.0,64491.0,0.178635]
[1719129116116,1.26321136,64492.0,64491.0,0.178635]
[1719129116328,0.95309636,64492.0,64491.0,0.178635]
[1719129116527,1.00499636,64492.0,64491.0,0.178635]
[1719129117363,1.1447429,64492.0,64491.0,0.178635]
[1719129117774,1.10286616,64492.0,64491.0,0.178635]
[1719129117978,0.13620651,64492.0,64491.0,0.178635]
[1719129118148,0.29126351,64492.0,64491.0,0.178635]
[1719129118346,0.29126351,64492.0,64491.0,0.18646471]
[1719129118788,0.257907,64492.0,64491.0,0.18646471]
[1719129118990,0.2920726,64492.0,64491.0,0.18646471]
[1719129119339,0.40847177,64492.0,64491.0,0.18646471]
[1719129121176,0.37430443,64492.0,64491.0,0.18646471]
[1719129121377,0.40849879,64492.0,64491.0,0.18646471]
[1719129121789,0.40845981,64492.0,64491.0,0.18646471]
[1719129121996,0.29206238,64492.0,64491.0,0.18646471]
[1719129124184,0.25763374,64492.0,64491.0,0.18646471]
[1719129124452,0.13674237,64492.0,64491.0,0.18646471]
[1719129124660,0.22982339,64492.0,64491.0,0.18646471]
[1719129125195,0.22982339,64492.0,64491.0,0.18673797]
[1719129125196,0.13674237,64492.0,64491.0,0.18673797]
[1719129125392,0.10257674,64492.0,64491.0,0.18646471]
[1719129125591,0.00285,64492.0,64491.0,0.18646471]
[1719129141009,0.00285,64492.0,64491.0,0.178635]
[1719129141387,0.157907,64492.0,64491.0,0.18671134]
[1719129141583,0.19211279,64492.0,64491.0,0.18671134]
[1719129141785,0.29211279,64492.0,64491.0,0.18671134]
[1719129142188,0.29211279,64492.0,64491.0,0.178635]
[1719129142398,0.29211279,64492.0,64491.0,0.18671134]
[1719129142898,0.257907,64492.0,64491.0,0.18671134]
[1719129143099,0.29218856,64492.0,64491.0,0.18671134]
[1719129144168,0.29218856,64492.0,64491.0,0.178635]
[1719129144370,0.29310882,64492.0,64491.0,0.178635]
[1719129145970,0.257907,64492.0,64491.0,0.178635]
[1719129146340,0.29329822,64492.0,64491.0,0.178635]
[1719129149263,0.29329822,64492.0,64491.0,0.18671176]
[1719129149264,0.29333773,64492.0,64491.0,0.18671176]
[1719129149503,0.257907,64492.0,64491.0,0.18671176]
[1719129149748,0.29333788,64492.0,64491.0,0.18671176]
[1719129152209,0.257907,64492.0,64491.0,0.18671176]
[1719129152425,0.29337282,64492.0,64491.0,0.18671176]
[1719129154832,0.2933638,64492.0,64491.0,0.18671176]
[1719129155401,0.29334711,64492.0,64491.0,0.18671176]
[1719129157524,0.38640473,64492.0,64491.0,0.18671176]
[1719129158529,0.38644074,64492.0,64491.0,0.18671176]
[1719129158913,0.35100063,64492.0,64491.0,0.18671176]
[1719129159076,0.38645403,64492.0,64491.0,0.18671176]
[1719129160422,0.2933604,64492.0,64491.0,0.18671176]
[1719129160627,0.38648034,64492.0,64491.0,0.18671176]
[1719129160824,0.2933604,64492.0,64491.0,0.18671176]
[1719129161032,0.38648046,64492.0,64491.0,0.18671176]
[1719129161431,0.2933604,64492.0,64491.0,0.18671176]
[1719129161629,0.29412848,64492.0,64491.0,0.18671176]
[1719129162457,0.41055083,64492.0,64491.0,0.18671176]
[1719129164748,0.29412848,64492.0,64491.0,0.18671176]
[1719129165261,0.4106053,64492.0,64491.0,0.18671176]
[1719129166942,0.29412848,64492.0,64491.0,0.18671176]
[1719129167820,0.257907,64492.0,64491.0,0.18671176]
[1719129167955,0.60425436,64492.0,64491.0,0.18671176]
[1719129168145,0.568022,64492.0,64491.0,0.18671176]
[1719129168350,0.60431161,64492.0,64491.0,0.18671176]
[1719129169384,0.60431161,64492.0,64491.0,0.178635]
[1719129170209,0.60431151,64492.0,64491.0,0.178635]
[1719129170410,0.72079321,64492.0,64491.0,0.178635]
[1719129171126,0.72077006,64492.0,64491.0,0.178635]
[1719129171708,0.60428679,64492.0,64491.0,0.178635]
[1719129173316,0.60428679,64492.0,64491.0,0.102135]
[1719129174202,0.60424897,64492.0,64491.0,0.102135]
[1719129174402,0.60371929,64492.0,64491.0,0.102135]
[1719129175330,0.72020391,64492.0,64491.0,0.102135]
[1719129177375,0.72018994,64492.0,64491.0,0.102135]
[1719129177875,0.72019714,64492.0,64491.0,0.102135]
[1719129180481,0.68397957,64492.0,64491.0,0.102135]
[1719129180736,0.72024638,64492.0,64491.0,0.102135]
[1719129182863,0.7201614,64492.0,64491.0,0.102135]
[1719129184257,0.71988716,64492.0,64491.0,0.102135]
[1719129184600,0.71961349,64492.0,64491.0,0.102135]
[1719129184812,0.91324017,64492.0,64491.0,0.102135]
[1719129185800,0.87705941,64492.0,64491.0,0.102135]
[1719129186000,0.91275655,64492.0,64491.0,0.102135]
[1719129186181,0.87705941,64492.0,64491.0,0.102135]
[1719129186379,0.91275653,64492.0,64491.0,0.102135]
[1719129187445,0.87705941,64492.0,64491.0,0.102135]
[1719129187599,0.91275361,64492.0,64491.0,0.102135]
[1719129188970,0.87705941,64492.0,64491.0,0.102135]
[1719129189196,0.91275067,64492.0,64491.0,0.102135]
[1719129192681,0.96465067,64492.0,64491.0,0.102135]
[1719129194324,0.96437641,64492.0,64491.0,0.102135]
[1719129194512,0.96410271,64492.0,64491.0,0.102135]
[1719129195136,0.92841145,64492.0,64491.0,0.102135]
[1719129195445,0.96410662,64492.0,64491.0,0.102135]
[1719129195597,0.92841145,64492.0,64491.0,0.102135]
[1719129195796,0.96410472,64492.0,64491.0,0.102135]
[1719129198157,0.92841145,64492.0,64491.0,0.102135]
[1719129198357,0.96420544,64492.0,64491.0,0.102135]
[1719129200666,0.98393218,64492.0,64491.0,0.102135]
[1719129200871,0.98393218,64492.0,64491.0,0.013935]
[1719129201912,1.29404718,64492.0,64491.0,0.013935]
[1719129204251,1.25825319,64492.0,64491.0,0.013935]
[1719129204443,1.29333245,64492.0,64491.0,0.013935]
[1719129204969,1.29338726,64492.0,64491.0,0.013935]
[1719129207403,1.25797903,64492.0,64491.0,0.013935]
[1719129207607,1.29344228,64492.0,64491.0,0.013935]
[1719129210177,1.27371554,64492.0,64491.0,0.013935]
[1719129210525,1.27371192,64492.0,64491.0,0.013935]
[1719129212084,1.38463866,64492.0,64491.0,0.013935]
[1719129212353,1.45673866,64492.0,64491.0,0.013935]
[1719129212729,1.13192266,64492.0,64491.0,0.013935]
[1719129212933,1.38697966,64492.0,64491.0,0.013935]
[1719129213574,1.35152003,64492.0,64491.0,0.013935]
[1719129213777,1.38703251,64492.0,64491.0,0.013935]
[1719129213961,1.36730577,64492.0,64491.0,0.013935]
[1719129214162,1.36730589,64492.0,64491.0,0.013935]
[1719129214371,1.36675798,64492.0,64491.0,0.013935]
[1719129215455,1.36675973,64492.0,64491.0,0.013935]
[1719129216814,1.20344599,64492.0,64491.0,0.013935]
[1719129220663,1.20348251,64492.0,64491.0,0.013935]
[1719129220899,1.22320925,64492.0,64491.0,0.013935]
[1719129223062,1.22320009,64492.0,64491.0,0.013935]
[1719129223516,1.18767212,64492.0,64491.0,0.013935]
[1719129223640,1.22320009,64492.0,64491.0,0.013935]
[1719129224529,1.22292683,64492.0,64491.0,0.013935]
[1719129226093,1.18739886,64492.0,64491.0,0.013935]
[1719129226298,1.22310405,64492.0,64491.0,0.013935]
[1719129229176,1.18739886,64492.0,64491.0,0.013935]
[1719129229383,1.22308226,64492.0,64491.0,0.013935]
[1719129230374,1.22310935,64492.0,64491.0,0.013935]
[1719129232796,1.18739886,64492.0,64491.0,0.013935]
[1719129232993,1.22319065,64492.0,64491.0,0.013935]
[1719129235647,1.22320341,64492.0,64491.0,0.013935]
[1719129236523,1.22330342,64492.0,64491.0,0.013935]
[1719129238784,1.22323163,64492.0,64491.0,0.013935]
[1719129241099,1.22325966,64492.0,64491.0,0.013935]
[1719129241509,1.18739886,64492.0,64491.0,0.013935]
[1719129241707,1.22325966,64492.0,64491.0,0.013935]
[1719129242635,1.18739886,64492.0,64491.0,0.013935]
[1719129242835,1.22326386,64492.0,64491.0,0.013935]
[1719129244173,1.18739886,64492.0,64491.0,0.013935]
[1719129244323,1.22328345,64492.0,64491.0,0.013935]
[1719129245521,1.22413345,64492.0,64491.0,0.013935]
[1719129248357,1.20440671,64492.0,64491.0,0.013935]
[1719129249179,1.15250671,64492.0,64491.0,0.013935]
[1719129249380,1.20440671,64492.0,64491.0,0.013935]
[1719129250148,1.22413345,64492.0,64491.0,0.013935]
[1719129250336,1.22411865,64492.0,64491.0,0.013935]
[1719129250738,1.16852212,64492.0,64491.0,0.013935]
[1719129250943,1.20439191,64492.0,64491.0,0.013935]
[1719129252008,1.20440198,64492.0,64491.0,0.013935]
[1719129253595,1.20431368,64492.0,64491.0,0.013935]
[1719129254095,0.84229868,64492.0,64491.0,0.013935]
[1719129254309,0.84229868,64492.0,64491.0,0.188135]
[1719129254504,0.8939238,64492.0,64491.0,0.188135]
[1719129256394,0.8939238,64492.0,64491.0,0.112735]
[1719129256896,0.85813224,64492.0,64491.0,0.112735]
[1719129257119,0.89479831,64492.0,64491.0,0.112735]
[1719129259944,0.89490191,64492.0,64491.0,0.112735]
[1719129260503,0.89489984,64492.0,64491.0,0.112735]
[1719129261580,0.89489865,64492.0,64491.0,0.112735]
[1719129262969,0.58478365,64492.0,64491.0,0.112735]
[1719129263158,0.58477597,64492.0,64491.0,0.112735]
[1719129265139,0.58477597,64492.0,64491.0,0.12196518]
[1719129266150,0.54801724,64492.0,64491.0,0.12196518]
[1719129266390,0.70122095,64492.0,64491.0,0.12196518]
[1719129266592,0.58476411,64492.0,64491.0,0.02343844]
[1719129266987,0.230753,64492.0,64491.0,0.20043844]
[1719129267390,0.24041721,64492.0,64491.0,0.20043844]
[1719129267606,0.24041721,64492.0,64491.0,0.20016518]
[1719129267776,0.24041721,64492.0,64491.0,0.20043844]
[1719129267986,0.24041721,64492.0,64491.0,0.19443844]
[1719129268361,0.24141721,64492.0,64491.0,0.20843844]
[1719129268534,0.24141721,64492.0,64491.0,0.20143844]
[1719129268741,0.24041721,64492.0,64491.0,0.20143844]
[1719129268966,0.24141721,64492.0,64491.0,0.20143844]
[1719129269169,0.24241721,64492.0,64491.0,0.21543844]
[1719129269374,0.24258227,64492.0,64491.0,0.21543844]
[1719129269533,0.24258227,64492.0,64491.0,0.36799956]
[1719129269730,0.24258197,64492.0,64491.0,0.36799956]
[1719129270560,0.14943906,64492.0,64491.0,0.36799956]
[1719129273734,0.11642864,64495.0,64493.0,0.0966]
[1719129273978,0.27147964,64495.0,64493.0,0.0966]
[1719129274514,0.27120496,64495.0,64493.0,0.0966]
[1719129274894,0.27220496,64495.0,64493.0,0.1106]
[1719129275099,0.156051,64495.0,64494.0,0.0804]
[1719129275569,0.156051,64495.0,64494.0,0.08963007]
[1719129275797,0.256051,64495.0,64494.0,0.08963007]
[1719129276415,0.255051,64495.0,64494.0,0.08963007]
[1719129276690,0.255051,64495.0,64494.0,0.10363007]
[1719129276691,0.256051,64495.0,64494.0,0.10363007]
[1719129277434,0.257051,64495.0,64494.0,0.11763007]
[1719129277661,0.102,64495.0,64494.0,0.11763007]
[1719129277862,0.002,64495.0,64494.0,0.11763007]
[1719129278091,0.102,64495.0,64494.0,0.11763007]
[1719129278426,0.10285,64495.0,64494.0,0.11763007]
[1719129279208,0.00285,64495.0,64494.0,0.11763007]
[1719129279387,0.00285,64495.0,64494.0,0.21423007]
[1719129280122,0.00285,64495.0,64494.0,0.21450333]
[1719129280477,0.00285,64495.0,64494.0,0.03750333]
[1719129281048,0.00285,64495.0,64494.0,0.13410333]
[1719129281858,0.03482378,64495.0,64494.0,0.13410333]
[1719129282601,0.03482378,64495.0,64494.0,0.13383007]
[1719129282935,0.03482378,64495.0,64494.0,0.13410333]
[1719129283154,0.03482378,64495.0,64494.0,0.13383007]
[1719129284342,0.03482378,64495.0,64494.0,0.03723007]
[1719129284983,0.03481256,64495.0,64494.0,0.03723007]
[1719129285404,0.03481256,64495.0,64494.0,0.20903007]
[1719129285614,0.03481256,64495.0,64494.0,0.36159119]
[1719129285787,0.03481256,64495.0,64494.0,0.36186445]
[1719129285987,0.03481256,64495.0,64494.0,0.36159119]
[1719129285988,0.00285,64495.0,64494.0,0.36159119]
[1719129286191,0.00285,64495.0,64494.0,0.36186445]
[1719129288979,0.00185,64495.0,64494.0,0.34786445]
[1719129289364,0.00285,64495.0,64494.0,0.36186445]
[1719129289739,0.00185,64495.0,64494.0,0.34786445]
[1719129289939,0.00085,64495.0,64494.0,0.33386445]
[1719129290289,0.00185,64495.0,64494.0,0.34786445]
[1719129290488,0.00185,64495.0,64494.0,0.50291745]
[1719129290702,0.00085,64495.0,64494.0,0.33386445]
[1719129290987,0.00185,64495.0,64494.0,0.34786445]
[1719129291658,0.00185,64495.0,64494.0,0.36186445]
[1719129310220,0.00185,64495.0,64494.0,0.36159119]
[1719129310450,0.00185,64495.0,64494.0,0.36186445]
[1719129313795,0.00185,64495.0,64494.0,0.28516445]
[1719129313930,0.00185,64495.0,64494.0,0.28489119]
[1719129314125,0.00185,64495.0,64494.0,0.28516445]
[1719129314355,0.00185,64495.0,64494.0,0.28489119]
[1719129314838,0.00185,64495.0,64494.0,0.28516445]
[1719129315240,0.00185,64495.0,64494.0,0.28489119]
[1719129315499,0.00185,64495.0,64494.0,0.28516445]
[1719129335816,0.06029408,64498.0,64496.0,0.00027326]
[1719129336040,0.21533708,64498.0,64497.0,0.15256112]
[1719129336242,0.21533708,64498.0,64497.0,0.1628818]
[1719129337931,0.31533708,64498.0,64497.0,0.17715506]
[1719129338554,0.31533708,64498.0,64497.0,0.16315506]
[1719129338974,0.31533708,64498.0,64497.0,0.17715506]
[1719129339423,0.31533708,64498.0,64497.0,0.16315506]
[1719129339827,0.31533708,64498.0,64497.0,0.17715506]
[1719129340085,0.255043,64498.0,64497.0,0.17715506]
[1719129341161,0.255043,64498.0,64497.0,0.19115506]
[1719129341769,0.255043,64498.0,64497.0,0.20515506]
[1719129346469,0.255043,64498.0,64497.0,0.2048818]
[1719129347492,0.255043,64498.0,64497.0,0.2058168]
[1719129347693,0.255893,64498.0,64497.0,0.2058168]
[1719129348314,0.255893,64498.0,64497.0,0.20609006]
[1719129348535,0.255893,64498.0,64497.0,0.2058168]
[1719129350057,0.255893,64498.0,64497.0,0.20609006]
[1719129351062,0.255893,64498.0,64497.0,0.2058168]
[1719129355814,0.255893,64498.0,64497.0,0.20609006]
[1719129356050,0.255893,64498.0,64497.0,0.2058168]
[1719129356955,0.10085,64498.0,64497.0,0.20609006]
[1719129361391,0.10085,64498.0,64497.0,0.2058168]
[1719129365906,0.255893,64498.0,64497.0,0.2058168]
[1719129371501,0.255893,64498.0,64497.0,0.20609006]
[1719129371913,0.255893,64498.0,64497.0,0.2058168]
[1719129372762,0.255893,64498.0,64497.0,0.20609006]
[1719129373152,0.255893,64498.0,64497.0,0.2058168]
[1719129373384,0.255893,64498.0,64497.0,0.20908]
[1719129373610,0.255893,64498.0,64497.0,0.20935326]
[1719129374290,0.255893,64498.0,64497.0,0.20908]
[1719129374500,0.255893,64498.0,64497.0,0.20935326]
[1719129374917,0.255893,64498.0,64497.0,0.20908]
[1719129375606,0.255893,64498.0,64497.0,0.20935326]
[1719129376679,0.255893,64498.0,64497.0,0.20908]
[1719129377308,0.255893,64498.0,64497.0,0.20935326]
[1719129377567,0.26555573,64498.0,64497.0,0.20935326]
[1719129379502,0.26555573,64498.0,64497.0,0.20908]
[1719129379920,0.26555573,64498.0,64497.0,0.20549699]
[1719129380422,0.26555568,64498.0,64497.0,0.20549699]
[1719129383408,0.26555569,64498.0,64497.0,0.20549699]
[1719129386467,0.26555569,64498.0,64497.0,0.20577025]
[1719129386683,0.26555567,64498.0,64497.0,0.20577025]
[1719129387747,0.26555567,64498.0,64497.0,0.19576938]
[1719129387950,0.26555567,64498.0,64497.0,0.20638062]
[1719129389703,0.255893,64498.0,64497.0,0.20638062]
[1719129389941,0.26555567,64498.0,64497.0,0.20638062]
[1719129392760,0.255893,64498.0,64497.0,0.20638062]
[1719129392964,0.2655556,64498.0,64497.0,0.20638062]
[1719129394572,0.2655556,64498.0,64497.0,0.20610736]
[1719129395178,0.2655556,64498.0,64497.0,0.29858062]
[1719129395795,0.1105126,64498.0,64497.0,0.29858062]
[1719129396005,0.11051257,64498.0,64497.0,0.29858062]
[1719129397093,0.01051257,64498.0,64497.0,0.37008062]
[1719129398158,0.01051257,64498.0,64497.0,0.29858062]
[1719129399049,0.01051243,64498.0,64497.0,0.29858062]
[1719129400499,0.00085,64498.0,64497.0,0.29858062]
[1719129400719,0.01051241,64498.0,64497.0,0.29858062]
[1719129403083,0.01051241,64498.0,64497.0,0.29830736]
[1719129403918,0.01051241,64498.0,64497.0,0.29858062]
[1719129404785,0.01023696,64498.0,64497.0,0.29858062]
[1719129407447,0.11023696,64498.0,64497.0,0.29858062]
[1719129407665,0.01023696,64498.0,64497.0,0.29858062]
[1719129408355,0.01023677,64498.0,64497.0,0.29858062]
[1719129408593,0.01023674,64498.0,64497.0,0.29858062]
[1719129408820,0.00057455,64498.0,64497.0,0.29858062]
[1719129409056,0.01023674,64498.0,64497.0,0.29858062]
[1719129409957,0.00057455,64498.0,64497.0,0.29858062]
[1719129410397,0.01023674,64498.0,64497.0,0.29858062]
[1719129410931,0.00057455,64498.0,64497.0,0.29858062]
[1719129411359,0.01023674,64498.0,64497.0,0.29858062]
[1719129411582,0.00057455,64498.0,64497.0,0.29858062]
[1719129412004,0.01023674,64498.0,64497.0,0.37558062]
[1719129412216,0.01023674,64498.0,64497.0,0.42748062]
[1719129412479,0.01023674,64498.0,64497.0,0.62748062]
[1719129413538,0.01023674,64498.0,64497.0,0.58548062]
[1719129413743,0.01023674,64498.0,64497.0,0.59948062]
[1719129413949,0.01023674,64498.0,64497.0,0.61348062]
[1719129414371,0.01023674,64498.0,64497.0,0.59948062]
[1719129414799,0.00996083,64498.0,64497.0,0.61348062]
[1719129417786,0.00029944,64498.0,64497.0,0.61348062]
[1719129418228,0.00996083,64498.0,64497.0,0.61348062]
[1719129418656,0.00996083,64498.0,64497.0,0.76852562]
[1719129418878,0.00996083,64498.0,64497.0,1.07861662]
[1719129419510,0.0099608,64498.0,64497.0,1.07861662]
[1719129420344,0.0099608,64498.0,64497.0,0.86461662]
[1719129420775,0.00029944,64498.0,64497.0,0.81271662]
[1719129421193,0.00996074,64498.0,64497.0,0.81271662]
[1719129421394,0.00996074,64498.0,64497.0,0.82671662]
[1719129421613,0.00996074,64498.0,64497.0,0.84071662]
[1719129421825,0.00996074,64498.0,64497.0,0.82671662]
[1719129422287,0.00996074,64498.0,64497.0,0.84071662]
[1719129422709,0.00996074,64498.0,64497.0,0.53062562]
[1719129423385,0.00996073,64498.0,64497.0,0.53062562]
[1719129423800,0.00996073,64498.0,64497.0,0.50262562]
[1719129424243,0.00996073,64498.0,64497.0,0.51662562]
[1719129424887,0.00968647,64498.0,64497.0,0.51662562]
[1719129425329,2.518e-05,64498.0,64497.0,0.51662562]
[1719129427268,2.518e-05,64498.0,64497.0,0.50262562]
[1719129427927,2.518e-05,64498.0,64497.0,0.51662562]
[1719129428138,2.518e-05,64498.0,64497.0,0.50262562]
[1719129428345,2.518e-05,64498.0,64497.0,0.51662562]
[1719129428579,0.00968646,64498.0,64497.0,0.51662562]
[1719129428798,2.518e-05,64498.0,64497.0,0.51662562]
[1719129430105,0.00968648,64498.0,64497.0,0.51662562]
[1719129430304,2.518e-05,64498.0,64497.0,0.51662562]
[1719129430811,2.518e-05,64498.0,64497.0,0.36158062]
[1719129433151,0.00968648,64498.0,64497.0,0.36158062]
[1719129433370,2.518e-05,64498.0,64497.0,0.36158062]
[1719129445069,0.02042473,64502.0,64501.0,0.00027326]
[1719129445283,0.02042473,64502.0,64501.0,0.15283438]
[1719129445497,0.1,64503.0,64502.0,0.00027326]
[1719129445711,0.1872,64504.0,64502.0,0.15283438]
[1719129445923,0.1872,64504.0,64503.0,0.15256112]
[1719129446130,0.20717842,64504.0,64503.0,0.15256112]
[1719129446348,0.20717842,64504.0,64503.0,0.16418096]
[1719129447519,0.20717842,64504.0,64503.0,0.17818096]
[1719129447955,0.20717842,64504.0,64503.0,0.19218096]
[1719129450144,0.36220742,64504.0,64503.0,0.19218096]
[1719129452252,0.0704,64505.0,64503.0,0.19218096]
[1719129453139,0.155029,64504.0,64503.0,0.19218096]
[1719129453356,0.155029,64504.0,64503.0,0.17818096]
[1719129453563,0.155029,64504.0,64503.0,0.16418096]
[1719129453771,0.155029,64504.0,64503.0,0.17818096]
[1719129454012,0.155029,64504.0,64503.0,0.19218096]
[1719129454231,0.255029,64504.0,64503.0,0.17818096]
[1719129454908,0.26469077,64504.0,64503.0,0.19218096]
[1719129455119,0.255029,64504.0,64503.0,0.19218096]
[1719129455325,0.26469077,64504.0,64503.0,0.19218096]
[1719129457684,0.255029,64504.0,64503.0,0.19218096]
[1719129457915,0.26469079,64504.0,64503.0,0.19218096]
[1719129460885,0.255029,64504.0,64503.0,0.19218096]
[1719129461114,0.26469079,64504.0,64503.0,0.19218096]
[1719129463257,0.26469079,64504.0,64503.0,0.19218096]
[1719129463899,0.255029,64504.0,64503.0,0.19218096]
[1719129464106,0.26469079,64504.0,64503.0,0.19218096]
[1719129464328,0.255029,64504.0,64503.0,0.19218096]
[1719129464533,0.26469079,64504.0,64503.0,0.19218096]
[1719129464951,0.26441653,64504.0,64503.0,0.19218096]
[1719129471083,0.25475474,64504.0,64503.0,0.19218096]
[1719129471292,0.26441653,64504.0,64503.0,0.19218096]
[1719129473410,0.25475474,64504.0,64503.0,0.19218096]
[1719129473663,0.26441653,64504.0,64503.0,0.19218096]
[1719129473873,0.25475474,64504.0,64503.0,0.19218096]
[1719129474082,0.26441653,64504.0,64503.0,0.19218096]
[1719129476681,0.26526653,64504.0,64503.0,0.19218096]
[1719129479665,0.25560474,64504.0,64503.0,0.19218096]
[1719129479874,0.26526653,64504.0,64503.0,0.18056112]
[1719129480290,0.26526653,64504.0,64503.0,0.19218096]
[1719129482224,0.25560474,64504.0,64503.0,0.19218096]
[1719129482449,0.26526667,64504.0,64503.0,0.19218096]
[1719129483754,0.2652666,64504.0,64503.0,0.19218096]